fUSD/lending_fUSD_20251026
["ID","MTS","AMOUNT","RATE_DAILY","PERIOD"]
[392450885,1761496240960,-1201.0,0.0003435,2]
[392450886,1761496240975,-978.0,0.00034417,2]
[392450887,1761496240986,-1692.20220104,0.00034478,2]
[392450888,1761496240997,-893.0,0.00034483,2]
[392450889,1761496241007,-513.0,0.00034544,7]
[392450890,1761496241018,-159.66,0.00034547,2]
[392450891,1761496241029,-505.0,0.00034553,2]
[392450892,1761496241042,-274.35986839,0.00034559,7]
[392450893,1761496241054,-57810.75598366,0.0003456,2]
[392450894,1761496241065,-1000.0,0.00034569,2]
[392450895,1761496241076,-169.0,0.00034669,2]
[392450896,1761496241086,-9167.1,0.00034824,2]
[392450897,1761496241096,-1692.20220104,0.00034833,2]
[392450898,1761496241107,-3425.9,0.00034852,2]
[392450899,1761496241120,-306.496,0.00034863,40]
[392450900,1761496241133,-432.02,0.00034916,120]
[392450901,1761496241144,-1852.42,0.00034976,2]
[392450902,1761496241155,-317.53864798,0.00035,120]
[392450903,1761496241166,-167.18650855,0.00035041,30]
[392450904,1761496241178,-1692.20220104,0.00035189,2]
[392450905,1761496241189,-167.18650855,0.0003526,30]
[392450906,1761496241199,-513.0,0.00035265,7]
[392450907,1761496241212,-150.0,0.00035287,2]
[392450908,1761496241224,-476.61195222,0.0003529,2]
[392450909,1761496241235,-823.81,0.00035403,2]
[392450910,1761496241247,-167.18650855,0.00035479,30]
[392450911,1761496241258,-513.0,0.00035525,2]
[392450912,1761496241269,-1692.20220104,0.00035544,2]
[392450913,1761496241279,-166.66,0.00035565,30]
[392450914,1761496241290,-169.45,0.00035593,2]
[392450915,1761496241302,-300.0,0.00035616,120]
[392450916,1761496241312,-877.22814605,0.00035659,2]
[392450917,1761496241323,-167.18650855,0.00035699,30]
[392450918,1761496241334,-10015.95746026,0.000358,2]
[392450919,1761496241345,-169.45,0.00035842,2]
[392450920,1761496241356,-154.35158542,0.00035873,2]
[392450921,1761496241367,-1091.22128024,0.00035874,8]
[392450922,1761496241378,-513.0,0.00035882,120]
[392450923,1761496241389,-1700.70628813,0.000359,2]
[392450924,1761496241401,-3177.02466748,0.000359,2]
[392450925,1761496241413,-517.41799805,0.000359,2]
[392450926,1761496241428,-253.62942048,0.000359,2]
[392450927,1761496241439,-256.37660803,0.000359,2]
[392450928,1761496241450,-1692.20220104,0.000359,2]
[392450929,1761496241463,-169.1198886,0.000359,2]
[392450930,1761496241474,-1117.02874902,0.000359,2]
[392450931,1761496241486,-167.18650855,0.00035918,30]
[392450932,1761496241499,-517.1035672,0.00035964,2]
[392450933,1761496241510,-3548.748289,0.00035968,2]
[392450934,1761496241521,-25415.1445446,0.00035968,2]
[392450935,1761496241532,-77130.9782087,0.0003597,3]
[392450936,1761496241544,-500.0,0.00035973,5]
[392450937,1761496241555,-500.0,0.00035973,5]
[392450938,1761496241566,-500.0,0.00035973,5]
[392450939,1761496241576,-500.0,0.00035973,2]
[392450940,1761496241587,-2966.57608495,0.00035973,3]
[392450941,1761496241597,-47465.2173592,0.00035974,3]
[392450942,1761496241608,-38587.7287739,0.00035974,3]
[392450943,1761496241619,-38587.7287739,0.0003598,3]
[392450944,1761496241631,-500.0,0.0003598,2]
[392450945,1761496241642,-151.0,0.0003598,31]
[392450946,1761496241654,-151.0,0.0003598,31]
[392450947,1761496241664,-151.0,0.0003598,31]
[392450948,1761496241675,-743.210507,0.0003598,31]
[392450949,1761496241688,-246.845721,0.0003598,31]
[392450950,1761496241700,-743.210507,0.0003598,31]
[392450951,1761496241712,-154.091019,0.0003598,31]
[392450952,1761496241725,-743.210507,0.0003598,31]
[392450953,1761496241736,-151.0,0.0003598,31]
[392450954,1761496241746,-743.210507,0.0003598,31]
[392450955,1761496241755,-425.38071,0.0003598,30]
[392450956,1761496241764,-151.0,0.0003598,31]
[392450957,1761496241774,-425.38071,0.0003598,30]
[392450958,1761496241783,-425.38071,0.0003598,30]
[392450959,1761496241792,-425.38071,0.0003598,30]
[392450960,1761496241801,-151.0,0.0003598,31]
[392450961,1761496241971,-151.0,0.0003598,31]
[392450962,1761496241988,-151.0,0.0003598,31]
[392450963,1761496242000,-151.0,0.0003598,31]
[392450964,1761496242010,-249.822442,0.0003598,31]
[392450965,1761496242019,-249.822442,0.0003598,31]
[392450966,1761496242028,-203.908452,0.0003598,31]
[392450967,1761496242038,-249.822442,0.0003598,31]
[392450968,1761496242047,-151.0,0.0003598,31]
[392450969,1761496242057,-249.822442,0.0003598,31]
[392450970,1761496242066,-151.0,0.0003598,31]
[392450971,1761496242075,-151.0,0.0003598,31]
[392450972,1761496242084,-151.0,0.0003598,31]
[392450973,1761496242093,-151.0,0.0003598,31]
[392450974,1761496242102,-151.0,0.0003598,31]
[392450975,1761496242111,-151.0,0.0003598,31]
[392450976,1761496242120,-151.0,0.0003598,31]
[392450977,1761496242129,-151.0,0.0003598,31]
[392450978,1761496242138,-151.0,0.0003598,31]
[392450979,1761496242148,-183291.711676,0.0003598,3]
[392450980,1761496242157,-500.0,0.00035983,2]
[392450981,1761496242166,-203755.628684,0.00035984,2]
[392450982,1761496242178,-172.2434551,0.00035984,2]
[392450983,1761496242190,-3448.0984132,0.00035984,2]
[392450984,1761496242201,-264.767769,0.00035984,31]
[392450985,1761496242211,-151.0,0.00035984,31]
[392450986,1761496242222,-151.0,0.00035984,31]
[392450987,1761496242231,-151.0,0.00035984,31]
[392450988,1761496242240,-153.209653,0.00035984,31]
[392450989,1761496242249,-151.0,0.00035984,31]
[392450990,1761496242258,-151.0,0.00035984,31]
[392450991,1761496242268,-151.0,0.00035984,31]
[392450992,1761496242277,-154.821242,0.00035984,31]
[392450993,1761496242289,-151.0,0.00035984,31]
[392450994,1761496242298,-151.0,0.00035984,31]
[392450995,1761496242307,-151.0,0.00035984,31]
[392450996,1761496242317,-151.0,0.00035984,31]
[392450997,1761496242327,-743.210507,0.00035984,31]
[392450998,1761496242336,-743.210507,0.00035984,31]
[392450999,1761496242346,-743.210507,0.00035984,31]
[392451000,1761496242356,-151.0,0.00035984,31]
[392451001,1761496242366,-743.210507,0.00035984,31]
[392451002,1761496242375,-425.38071,0.00035984,30]
[392451003,1761496242384,-425.38071,0.00035984,30]
[392451004,1761496242394,-290.147261,0.00035984,31]
[392451005,1761496242404,-425.38071,0.00035984,30]
[392451006,1761496242417,-425.38071,0.00035984,30]
[392451007,1761496242427,-151.0,0.00035984,31]
[392451008,1761496242436,-151.0,0.00035984,31]
[392451009,1761496242446,-151.0,0.00035984,31]
[392451010,1761496242457,-249.822442,0.00035984,31]
[392451011,1761496242467,-151.0,0.00035984,31]
[392451012,1761496242477,-249.822442,0.00035984,31]
[392451013,1761496242488,-249.822442,0.00035984,31]
[392451014,1761496242499,-151.0,0.00035984,31]
[392451015,1761496242508,-249.822442,0.00035984,31]
[392451016,1761496242519,-151.0,0.00035984,31]
[392451017,1761496242528,-151.0,0.00035984,31]
[392451018,1761496242537,-151.0,0.00035984,31]
[392451019,1761496242547,-151.0,0.00035984,31]
[392451020,1761496242557,-151.0,0.00035984,31]
[392451021,1761496242567,-151.0,0.00035984,31]
[392451022,1761496242577,-151.0,0.00035984,31]
[392451023,1761496242588,-151.0,0.00035984,31]
[392451024,1761496242597,-151.0,0.00035984,31]
[392451025,1761496242607,-9646.93219347,0.00035989,3]
[392451026,1761496242617,-500.0,0.00035989,2]
[392451027,1761496242628,-500.0,0.00035989,2]
[392451028,1761496242638,-150.41,0.00035989,2]
[392451029,1761496242648,-224.62285908,0.00035989,2]
[392451030,1761496242658,-38587.7287739,0.0003599,3]
[392451031,1761496242668,-151.0,0.0003599,31]
[392451032,1761496242678,-153.592917,0.0003599,31]
[392451033,1761496242689,-151.0,0.0003599,31]
[392451034,1761496242699,-153.184077,0.0003599,31]
[392451035,1761496242709,-155.421306,0.0003599,31]
[392451036,1761496242718,-152.773944,0.0003599,31]
[392451037,1761496242727,-151.0,0.0003599,31]
[392451038,1761496242737,-151.0,0.0003599,31]
[392451039,1761496242746,-151.0,0.0003599,31]
[392451040,1761496242755,-151.0,0.0003599,31]
[392451041,1761496242764,-151.0,0.0003599,31]
[392451042,1761496242774,-151.0,0.0003599,31]
[392451043,1761496242783,-151.0,0.0003599,31]
[392451044,1761496242801,-206.987683,0.0003599,31]
[392451045,1761496242813,-151.0,0.0003599,31]
[392451046,1761496242824,-151.0,0.0003599,31]
[392451047,1761496242835,-151.0,0.0003599,31]
[392451048,1761496242844,-181.574582,0.0003599,31]
[392451049,1761496242854,-181.574582,0.0003599,31]
[392451051,1761496242863,-181.574582,0.0003599,31]
[392451052,1761496242874,-181.574582,0.0003599,31]
[392451053,1761496242884,-151.0,0.0003599,31]
[392451054,1761496242894,-151.0,0.0003599,31]
[392451055,1761496242904,-151.0,0.0003599,31]
[392451056,1761496242914,-181.574582,0.0003599,31]
[392451057,1761496242924,-181.574582,0.0003599,31]
[392451058,1761496242935,-181.574582,0.0003599,31]
[392451059,1761496242945,-181.574582,0.0003599,31]
[392451060,1761496242955,-151.0,0.0003599,31]
[392451061,1761496242965,-151.0,0.0003599,31]
[392451062,1761496242976,-151.0,0.0003599,31]
[392451063,1761496242986,-151.0,0.0003599,31]
[392451064,1761496242996,-151.0,0.0003599,31]
[392451065,1761496243007,-151.0,0.0003599,31]
[392451066,1761496243016,-151.649511,0.0003599,31]
[392451069,1761496243026,-151.0,0.0003599,31]
[392451071,1761496243035,-151.0,0.0003599,31]
[392451073,1761496243045,-151.0,0.0003599,31]
[392451075,1761496243055,-151.0,0.0003599,31]
[392451076,1761496243064,-151.0,0.0003599,31]
[392451077,1761496243073,-153.351423,0.0003599,31]
[392451078,1761496243083,-153.611371,0.0003599,31]
[392451079,1761496243093,-153.611371,0.0003599,31]
[392451081,1761496243102,-153.611371,0.0003599,31]
[392451082,1761496243112,-153.611371,0.0003599,31]
[392451083,1761496243121,-153.611371,0.0003599,31]
[392451084,1761496243130,-153.611371,0.0003599,31]
[392451085,1761496243140,-153.611371,0.0003599,31]
[392451086,1761496243149,-153.611371,0.0003599,31]
[392451087,1761496243163,-151.0,0.0003599,31]
[392451088,1761496243173,-151.0,0.0003599,31]
[392451089,1761496243182,-151.0,0.0003599,31]
[392451090,1761496243192,-151.0,0.0003599,31]
[392451091,1761496243202,-48234.6609673,0.0003599,3]
[392451092,1761496243213,-278.670365,0.0003599,31]
[392451093,1761496243223,-153.303245,0.0003599,31]
[392451094,1761496243232,-203.416642,0.0003599,31]
[392451095,1761496243242,-151.0,0.0003599,31]
[392451096,1761496243252,-151.0,0.0003599,31]
[392451097,1761496243261,-151.0,0.0003599,31]
[392451098,1761496243271,-264.968687,0.0003599,31]
[392451099,1761496243280,-151.0,0.0003599,31]
[392451100,1761496243290,-151.0,0.0003599,31]
[392451101,1761496243300,-241.134348,0.0003599,31]
[392451102,1761496243309,-224.62285908,0.0003599,2]
[392451103,1761496243319,-200.0,0.00035999,30]
[392451104,1761496243330,-153.98124979,0.00035999,20]
[392451105,1761496243339,-500.0,0.00035999,2]
[392451106,1761496243352,-500.0,0.00035999,2]
[392451107,1761496243361,-500.0,0.00035999,2]
[392451108,1761496243382,-500.0,0.00035999,2]
[392451109,1761496243392,-414.0,0.00035999,30]
[392451110,1761496243402,-429.318,0.00035999,30]
[392451111,1761496243415,-445.202766,0.00035999,30]
[392451112,1761496243424,-461.67526834,0.00035999,30]
[392451113,1761496243434,-478.75725327,0.00035999,30]
[392451114,1761496243444,-496.47127164,0.00035999,30]
[392451115,1761496243454,-514.84070869,0.00035999,30]
[392451116,1761496243464,-533.88981491,0.00035999,30]
[392451117,1761496243473,-553.64373807,0.00035999,30]
[392451118,1761496243483,-574.12855637,0.00035999,30]
[392451120,1761496243495,-595.37131296,0.00035999,30]
[392451122,1761496243504,-248.427968,0.00035999,31]
[392451124,1761496243513,-617.40005154,0.00035999,30]
[392451126,1761496243523,-640.24385345,0.00035999,30]
[392451128,1761496243532,-663.93287602,0.00035999,30]
[392451129,1761496243541,-688.49839244,0.00035999,30]
[392451131,1761496243551,-713.97283296,0.00035999,30]
[392451132,1761496243564,-604.09475324,0.00035999,30]
[392451133,1761496243573,-151.0,0.00035999,31]
[392451134,1761496243582,-743.210507,0.00035999,31]
[392451135,1761496243591,-743.210507,0.00035999,31]
[392451136,1761496243601,-743.210507,0.00035999,31]
[392451137,1761496243610,-743.210507,0.00035999,31]
[392451138,1761496243620,-425.38071,0.00035999,30]
[392451139,1761496243629,-425.38071,0.00035999,30]
[392451140,1761496243639,-425.38071,0.00035999,30]
[392451141,1761496243648,-425.38071,0.00035999,30]
[392451142,1761496243658,-151.0,0.00035999,31]
[392451143,1761496243667,-151.0,0.00035999,31]
[392451144,1761496243676,-151.0,0.00035999,31]
[392451146,1761496243686,-249.822442,0.00035999,31]
[392451147,1761496243695,-151.0,0.00035999,31]
[392451148,1761496243706,-249.822442,0.00035999,31]
[392451149,1761496243716,-249.822442,0.00035999,31]
[392451150,1761496243726,-151.0,0.00035999,31]
[392451151,1761496243735,-249.822442,0.00035999,31]
[392451152,1761496243744,-151.0,0.00035999,31]
[392451153,1761496243757,-151.0,0.00035999,31]
[392451154,1761496243767,-151.0,0.00035999,31]
[392451155,1761496243776,-151.0,0.00035999,31]
[392451156,1761496243786,-151.0,0.00035999,31]
[392451157,1761496243795,-151.0,0.00035999,31]
[392451158,1761496243805,-8596.59914749,0.00036,31]
[392451164,1761496246196,-327.70000134,0.0003598,31]
[392451169,1761496246394,-50.88234466,0.0003598,31]
[392451170,1761496246405,-151.0,0.0003598,31]
[392451171,1761496246417,-90.29669363,0.0003598,31]
[392451172,1761496246430,-60.70330637,0.0003598,31]
[392451173,1761496246439,-378.582346,0.0003598,31]
[392451174,1761496246449,-151.0,0.0003598,31]
[392451175,1761496246458,-378.582346,0.00035984,31]
[392451176,1761496246467,-151.0,0.00035984,31]
[392451177,1761496246477,-151.0,0.00035984,31]
[392451178,1761496246487,-378.582346,0.00035984,31]
[392451179,1761496246498,-187.094176,0.00035984,31]
[392451180,1761496246507,-378.582346,0.00035999,31]
[392451181,1761496246516,-151.0,0.00035999,31]
[392451182,1761496246525,-378.582346,0.00035999,31]
[392451184,1761496246534,-179.672344,0.00035999,31]
[392451185,1761496246544,-6381.51720662,0.00036,31]
[392451186,1761496246555,-12515.15573765,0.00036,31]
[392451213,1761496342239,500.0,0.000121,2]
[392451221,1761496643061,500.0,0.000121,2]
[392451224,1761497031954,177.01,0.000171,2]
[392451225,1761497133091,-181.93,0.00031544,2]
[392451226,1761497133110,-195.0,0.00031558,120]
[392451227,1761497133130,-195.0,0.00031572,120]
[392451228,1761497133148,-287.50045974,0.000316,5]
[392451229,1761497215090,-281.22084531,0.000316,5]
[392451230,1761497215112,-39.11715865,0.00031701,120]
[392451232,1761497237275,500.0,0.000121,2]
[392451233,1761497247894,558.07929573,0.000121,2]
[392451235,1761497346077,-263.3972,0.00031542,2]
[392451236,1761497346098,-195.0,0.00031622,120]
[392451237,1761497346119,-103.87544636,0.00031701,120]
[392451246,1761497432473,-52.00739499,0.00031701,120]
[392451247,1761497432483,-195.0,0.000318,120]
[392451248,1761497432492,-165.48895924,0.00031899,2]
[392451249,1761497432501,-295.97705358,0.00032,120]
[392451250,1761497432510,-170.23429059,0.00032,120]
[392451251,1761497432519,-191.58816148,0.00032,120]
[392451252,1761497432527,-220.81410632,0.00032,120]
[392451253,1761497432536,-183.141745,0.00032,120]
[392451254,1761497432546,-202.80856504,0.00032,120]
[392451255,1761497432555,-573.47136202,0.00032,2]
[392451256,1761497432564,-290.45580444,0.00032564,2]
[392451257,1761497432575,-295.97705358,0.00033,120]
[392451258,1761497432584,-174.0,0.00033,14]
[392451259,1761497432593,-400.0,0.00033037,2]
[392451260,1761497432602,-8968.18,0.00033038,2]
[392451261,1761497432611,-328.0,0.00033465,2]
[392451262,1761497432620,-466.0,0.00033532,2]
[392451263,1761497432629,-209.0,0.00033598,2]
[392451264,1761497432638,-1629.0,0.00033618,2]
[392451265,1761497432648,-679.0,0.00033685,2]
[392451266,1761497432657,-1601.0,0.00033752,2]
[392451268,1761497432666,-1334.0,0.00033819,2]
[392451270,1761497432675,-1635.0,0.00033887,2]
[392451272,1761497432684,-295.97705358,0.000339,120]
[392451274,1761497432694,-1977.0,0.00033954,2]
[392451276,1761497432703,-595.53830747,0.00033972,2]
[392451278,1761497432712,-428.0,0.00034021,2]
[392451280,1761497432721,-321.38,0.00034088,30]
[392451282,1761497432730,-1351.0,0.00034088,2]
[392451283,1761497432740,-165.48895923,0.00034122,2]
[392451284,1761497432750,-969.0,0.00034155,2]
[392451285,1761497432759,-2700.41,0.0003416,2]
[392451287,1761497432768,-500.0,0.00034221,7]
[392451289,1761497432777,-481.83013625,0.00034221,7]
[392451291,1761497432787,-93740.53,0.00034222,7]
[392451293,1761497432796,-675.0,0.00034222,2]
[392451295,1761497432809,-9049.52,0.00034225,2]
[392451297,1761497432817,-626.0,0.00034289,2]
[392451299,1761497432826,-2104.9,0.00034329,2]
[392451301,1761497432835,-492.0,0.00034354,3]
[392451303,1761497432845,-300.01661868,0.00034423,3]
[392451306,1761497432854,-174.0,0.00034521,30]
[392451309,1761497432863,-195.0,0.00034696,120]
[392451331,1761497433054,-250.0,0.00034698,2]
[392451333,1761497433065,-370.0,0.00034759,2]
[392451335,1761497433075,-195.0,0.0003476,120]
[392451337,1761497433084,-1000.0,0.000348,2]
[392451339,1761497433093,-195.0,0.00034871,120]
[392451341,1761497433103,-166.47,0.00034927,2]
[392451343,1761497433112,-277.147,0.0003494,40]
[392451345,1761497433121,-353.0,0.0003494,2]
[392451347,1761497433131,-500.0,0.00034975,9]
[392451350,1761497433141,-295.97705358,0.00035,120]
[392451352,1761497433150,-1000.0,0.00035,50]
[392451354,1761497433160,-203.29,0.00035049,5]
[392451356,1761497433170,-166.66,0.00035373,2]
[392451358,1761497433179,-4616.72,0.00035422,2]
[392451360,1761497433188,-300.0,0.00035616,120]
[392451362,1761497433197,-161.8554,0.0003564,2]
[392451364,1761497433206,-3974.0,0.00035687,2]
[392451366,1761497433215,-557.0,0.00035699,2]
[392451368,1761497433225,-154.44,0.00035709,2]
[392451369,1761497433235,-3974.0,0.00035813,7]
[392451372,1761497433244,-500.0,0.000359,30]
[392451374,1761497433253,-500.0,0.000359,30]
[392451375,1761497433263,-152.06391447,0.000359,2]
[392451377,1761497433272,-196.21066974,0.000359,2]
[392451380,1761497433284,-247.29047148,0.000359,2]
[392451382,1761497433296,-169.11988859,0.000359,2]
[392451384,1761497433306,-169.08628032,0.000359,2]
[392451386,1761497433316,-213.6471734,0.000359,2]
[392451388,1761497433325,-862.776,0.00035972,120]
[392451390,1761497433334,-533.15473545,0.00035973,5]
[392451392,1761497433343,-500.0,0.00035973,5]
[392451394,1761497433353,-500.0,0.00035973,3]
[392451396,1761497433362,-500.0,0.00035973,5]
[392451398,1761497433371,-500.0,0.00035979,9]
[392451400,1761497433381,-177.79505128,0.00035979,15]
[392451402,1761497433390,-372.87534242,0.00035979,15]
[392451404,1761497433399,-204.54433396,0.00035979,15]
[392451406,1761497433409,-15755.89320572,0.0003598,3]
[392451409,1761497433421,-367.44,0.0003598,3]
[392451411,1761497433432,-3355.13919844,0.0003598,3]
[392451421,1761497438370,-37783.20396504,0.0003598,3]
[392451422,1761497438380,-35706.1775992,0.0003598,3]
[392451423,1761497438390,-345.14392688,0.0003598,2]
[392451424,1761497438399,-500.0,0.00035983,9]
[392451425,1761497438408,-14282.4710397,0.00035988,3]
[392451426,1761497438417,-265.67190233,0.00035989,3]
[392451427,1761497438429,-21158.03465717,0.00035989,3]
[392451428,1761497438439,-407.22013568,0.00035989,9]
[392451429,1761497438448,-277.35679052,0.00035989,3]
[392451430,1761497438457,-287.61899177,0.00035989,3]
[392451431,1761497438466,-298.26089446,0.00035989,3]
[392451432,1761497438476,-309.29654756,0.00035989,3]
[392451433,1761497438485,-320.74051982,0.00035989,3]
[392451434,1761497438495,-332.60791905,0.00035989,3]
[392451435,1761497438504,-264.8424049,0.00035989,3]
[392451436,1761497438513,-500.0,0.00035989,2]
[392451437,1761497438522,-500.0,0.00035989,2]
[392451438,1761497438531,-31644.9524902,0.0003599,3]
[392451439,1761497438543,-11202.4606288,0.0003599,3]
[392451440,1761497438552,-3453.54993938,0.0003599,3]
[392451441,1761497438570,-196501.04461562,0.0003599,3]
[392451442,1761497438579,-224.62285908,0.0003599,2]
[392451443,1761497438588,-224.62285908,0.0003599,2]
[392451445,1761497438597,-150.41,0.0003599,2]
[392451447,1761497438607,-881.77,0.00035998,14]
[392451448,1761497438617,-200.0,0.00035998,30]
[392451449,1761497438627,-368.2839526,0.00035998,30]
[392451450,1761497438636,-201.12765536,0.00035998,30]
[392451452,1761497438645,-151.0,0.00035998,30]
[392451453,1761497438654,-151.0,0.00035998,30]
[392451454,1761497438664,-253.0,0.00035998,30]
[392451455,1761497438673,-151.0,0.00035998,30]
[392451456,1761497438683,-151.0,0.00035998,30]
[392451457,1761497438692,-151.0,0.00035998,30]
[392451458,1761497438702,-200.0,0.00035998,30]
[392451459,1761497438711,-151.0,0.00035998,30]
[392451460,1761497438721,-414.0,0.00035998,30]
[392451461,1761497438730,-151.0,0.00035998,30]
[392451462,1761497438739,-429.318,0.00035998,30]
[392451463,1761497438747,-151.0,0.00035998,30]
[392451464,1761497438757,-220.0,0.00035998,30]
[392451465,1761497438767,-445.202766,0.00035998,30]
[392451466,1761497438776,-151.0,0.00035998,30]
[392451467,1761497438786,-220.0,0.00035998,30]
[392451468,1761497438795,-461.67526834,0.00035998,30]
[392451469,1761497438806,-151.0,0.00035998,30]
[392451470,1761497438817,-250.0,0.00035998,30]
[392451471,1761497438827,-478.75725327,0.00035998,30]
[392451472,1761497438836,-151.0,0.00035998,30]
[392451473,1761497438847,-151.0,0.00035998,30]
[392451474,1761497438856,-250.0,0.00035998,30]
[392451475,1761497438867,-220.0,0.00035998,30]
[392451476,1761497438876,-268.08190151,0.00035998,30]
[392451477,1761497438888,-496.47127164,0.00035998,30]
[392451478,1761497438897,-151.0,0.00035998,30]
[392451479,1761497438907,-151.0,0.00035998,30]
[392451480,1761497438916,-250.0,0.00035998,30]
[392451481,1761497438925,-250.0,0.00035998,30]
[392451482,1761497438935,-220.0,0.00035998,30]
[392451483,1761497438944,-514.84070869,0.00035998,30]
[392451484,1761497438954,-151.0,0.00035998,30]
[392451485,1761497438963,-151.0,0.00035998,30]
[392451486,1761497438972,-250.0,0.00035998,30]
[392451487,1761497438982,-250.0,0.00035998,30]
[392451488,1761497438991,-250.0,0.00035998,30]
[392451489,1761497439002,-533.88981491,0.00035998,30]
[392451490,1761497439011,-151.0,0.00035998,30]
[392451491,1761497439020,-151.0,0.00035998,30]
[392451492,1761497439030,-250.0,0.00035998,30]
[392451493,1761497439040,-220.0,0.00035998,30]
[392451494,1761497439049,-250.0,0.00035998,30]
[392451495,1761497439060,-250.0,0.00035998,30]
[392451496,1761497439070,-553.64373807,0.00035998,30]
[392451497,1761497439080,-151.0,0.00035998,30]
[392451498,1761497439090,-250.0,0.00035998,30]
[392451499,1761497439102,-250.0,0.00035998,30]
[392451500,1761497439112,-250.0,0.00035998,30]
[392451501,1761497439122,-574.12855637,0.00035998,30]
[392451502,1761497439133,-151.0,0.00035998,30]
[392451503,1761497439143,-250.0,0.00035998,30]
[392451504,1761497439154,-250.0,0.00035998,30]
[392451505,1761497439164,-595.37131296,0.00035998,30]
[392451506,1761497439174,-250.0,0.00035998,30]
[392451507,1761497439184,-250.0,0.00035998,30]
[392451508,1761497439194,-151.0,0.00035998,30]
[392451509,1761497439204,-250.0,0.00035998,30]
[392451510,1761497439214,-617.40005154,0.00035998,30]
[392451511,1761497439223,-151.0,0.00035998,30]
[392451512,1761497439233,-250.0,0.00035998,30]
[392451513,1761497439243,-250.0,0.00035998,30]
[392451514,1761497439252,-640.24385345,0.00035998,30]
[392451515,1761497439262,-151.0,0.00035998,30]
[392451516,1761497439272,-250.0,0.00035998,30]
[392451517,1761497439282,-250.0,0.00035998,30]
[392451518,1761497439291,-250.0,0.00035998,30]
[392451519,1761497439300,-663.93287602,0.00035998,30]
[392451520,1761497439310,-151.0,0.00035998,30]
[392451521,1761497439319,-250.0,0.00035998,30]
[392451522,1761497439328,-250.0,0.00035998,30]
[392451523,1761497439338,-688.49839244,0.00035998,30]
[392451524,1761497439347,-250.0,0.00035998,30]
[392451525,1761497439360,-151.0,0.00035998,30]
[392451526,1761497439369,-250.0,0.00035998,30]
[392451527,1761497439379,-713.97283296,0.00035998,30]
[392451528,1761497439389,-250.0,0.00035998,30]
[392451529,1761497439399,-250.0,0.00035998,30]
[392451530,1761497439409,-604.09475324,0.00035998,30]
[392451531,1761497439418,-180.24415004,0.00035998,30]
[392451532,1761497439428,-250.0,0.00035998,30]
[392451533,1761497439437,-250.0,0.00035998,30]
[392451534,1761497439446,-200.0,0.00035998,30]
[392451535,1761497439457,-250.0,0.00035998,30]
[392451536,1761497439466,-250.0,0.00035998,30]
[392451537,1761497439476,-353.25738842,0.00035998,30]
[392451538,1761497439485,-250.0,0.00035998,30]
[392451539,1761497439494,-250.0,0.00035998,30]
[392451540,1761497439504,-250.0,0.00035998,30]
[392451541,1761497439513,-250.0,0.00035998,30]
[392451542,1761497439522,-250.0,0.00035998,30]
[392451543,1761497439531,-250.0,0.00035998,30]
[392451544,1761497439540,-250.0,0.00035998,30]
[392451545,1761497439550,-250.0,0.00035998,30]
[392451546,1761497439559,-297.17620436,0.00035998,30]
[392451547,1761497439569,-500.0,0.00035998,2]
[392451548,1761497439578,-3635.7682598,0.00035999,2]